[Event "Titled Tuesday Blitz February 07 Early 2023"]
[White "Bulmaga, Irina"]
[Black "Matveeva, Olga"]
[WhiteFideId "13903063"]
[BlackFideId "24107018"]
[WhiteElo "2422"]
[BlackElo "2128"]
[Result "1-0"]
[Round "03"]
[TimeControl "180+2"]
[Date "2023.02.07"]
[WhiteClock "0:00:03"]
[BlackClock "0:00:11"]

1. e4 {[%clk 0:03:00]}  e6 {[%clk 0:02:59]} 2. d3 {[%clk 0:02:59]}  d5 {[%clk 0:02:59]} 3. Nd2 {[%clk 0:02:59]}  Nf6 {[%clk 0:02:59]} 4. Ngf3 {[%clk 0:02:59]}  Nc6 {[%clk 0:02:59]} 5. c3 {[%clk 0:02:56]}  e5 {[%clk 0:02:57]} 6. Qc2 {[%clk 0:02:54]}  dxe4 {[%clk 0:02:49]} 7. dxe4 {[%clk 0:02:52]}  Bc5 {[%clk 0:02:49]} 8. h3 {[%clk 0:02:51]}  O-O {[%clk 0:02:48]} 9. Be2 {[%clk 0:02:44]}  a5 {[%clk 0:02:47]} 10. a4 {[%clk 0:02:43]}  Qe7 {[%clk 0:02:40]} 11. Nc4 {[%clk 0:02:40]}  b6 {[%clk 0:02:37]} 12. Bg5 {[%clk 0:02:37]}  h6 {[%clk 0:02:34]} 13. Bh4 {[%clk 0:02:33]}  Ba6 {[%clk 0:02:32]} 14. g4 {[%clk 0:02:14]}  Qe6 {[%clk 0:02:18]} 15. b3 {[%clk 0:01:52]}  Rfe8 {[%clk 0:02:03]} 16. Ne3 {[%clk 0:01:30]}  Bxe3 {[%clk 0:01:57]} 17. fxe3 {[%clk 0:01:29]}  Bxe2 {[%clk 0:01:54]} 18. Kxe2 {[%clk 0:01:29]}  Nd7 {[%clk 0:01:45]} 19. g5 {[%clk 0:01:14]}  Nc5 {[%clk 0:01:39]} 20. gxh6 {[%clk 0:01:10]}  Qxh6 {[%clk 0:01:40]} 21. Rhg1 {[%clk 0:01:04]}  Re6 {[%clk 0:01:25]} 22. Rg4 {[%clk 0:00:52]}  Rae8 {[%clk 0:00:52]} 23. Rb1 {[%clk 0:00:46]}  Rg6 {[%clk 0:00:48]} 24. b4 {[%clk 0:00:46]}  Ne6 {[%clk 0:00:42]} 25. Rxg6 {[%clk 0:00:37]}  Qxg6 {[%clk 0:00:41]} 26. Rg1 {[%clk 0:00:37]}  Qh5 {[%clk 0:00:41]} 27. b5 {[%clk 0:00:34]}  Ne7 {[%clk 0:00:34]} 28. Rg4 {[%clk 0:00:34]}  Ng6 {[%clk 0:00:33]} 29. Qc1 {[%clk 0:00:22]}  Nc5 {[%clk 0:00:33]} 30. Qg1 {[%clk 0:00:22]}  Re6 {[%clk 0:00:32]} 31. Rg5 {[%clk 0:00:21]}  Qh6 {[%clk 0:00:28]} 32. Qg4 {[%clk 0:00:18]}  Nxh4 {[%clk 0:00:19]} 33. Nxh4 {[%clk 0:00:15]}  Nxe4 {[%clk 0:00:16]} 34. Rh5 {[%clk 0:00:12]}  Nxc3+ {[%clk 0:00:15]} 35. Kd3 {[%clk 0:00:10]}  Rd6+ {[%clk 0:00:11]} 36. Kc4 {[%clk 0:00:03]}  Qxe3 {[%clk 0:00:11]} 37. Qc8+ {[%clk 0:00:03]} 1-0


[Site "https://www.chess.com"]

[Event "Titled Tuesday Blitz February 07 Early 2023"]
[White "Nunez V, Gustavo Eduardo"]
[Black "Bodnaruk, Anastasia"]
[WhiteFideId "4403690"]
[BlackFideId "4181751"]
[WhiteElo "2212"]
[BlackElo "2350"]
[Result "1-0"]
[Round "03"]
[TimeControl "180+2"]
[Date "2023.02.07"]
[WhiteClock "0:00:15"]
[BlackClock "0:00:18"]

1. e4 {[%clk 0:02:49]}  c5 {[%clk 0:02:59]} 2. Nc3 {[%clk 0:02:49]}  d6 {[%clk 0:02:59]} 3. g3 {[%clk 0:02:49]}  Nc6 {[%clk 0:02:59]} 4. Bg2 {[%clk 0:02:50]}  g6 {[%clk 0:02:59]} 5. d3 {[%clk 0:02:49]}  Bg7 {[%clk 0:03:00]} 6. Be3 {[%clk 0:02:50]}  e6 {[%clk 0:02:58]} 7. Qd2 {[%clk 0:02:50]}  Rb8 {[%clk 0:02:58]} 8. a4 {[%clk 0:02:47]}  Nge7 {[%clk 0:02:44]} 9. h4 {[%clk 0:02:44]}  h5 {[%clk 0:02:42]} 10. Nh3 {[%clk 0:02:40]}  Nd4 {[%clk 0:02:41]} 11. f4 {[%clk 0:02:39]}  O-O {[%clk 0:02:34]} 12. O-O {[%clk 0:02:37]}  Nec6 {[%clk 0:02:30]} 13. Rf2 {[%clk 0:02:24]}  a6 {[%clk 0:02:24]} 14. Raf1 {[%clk 0:02:24]}  b5 {[%clk 0:02:22]} 15. axb5 {[%clk 0:02:25]}  axb5 {[%clk 0:02:22]} 16. f5 {[%clk 0:02:19]}  exf5 {[%clk 0:02:19]} 17. Nd5 {[%clk 0:02:00]}  Ne5 {[%clk 0:02:11]} 18. c3 {[%clk 0:01:57]}  Ndc6 {[%clk 0:02:10]} 19. Bg5 {[%clk 0:01:45]}  f6 {[%clk 0:02:09]} 20. Bh6 {[%clk 0:01:31]}  Ng4 {[%clk 0:02:06]} 21. Bxg7 {[%clk 0:01:30]}  Kxg7 {[%clk 0:02:06]} 22. Re2 {[%clk 0:01:26]}  fxe4 {[%clk 0:02:02]} 23. Bxe4 {[%clk 0:01:24]}  Nce5 {[%clk 0:01:57]} 24. Nhf4 {[%clk 0:01:19]}  f5 {[%clk 0:01:50]} 25. Bg2 {[%clk 0:01:12]}  Nf6 {[%clk 0:01:35]} 26. d4 {[%clk 0:01:10]}  Nf7 {[%clk 0:01:31]} 27. Ne7 {[%clk 0:00:57]}  Re8 {[%clk 0:01:17]} 28. Nexg6 {[%clk 0:00:55]}  Bd7 {[%clk 0:01:05]} 29. Rfe1 {[%clk 0:00:52]}  Rxe2 {[%clk 0:00:57]} 30. Rxe2 {[%clk 0:00:45]}  cxd4 {[%clk 0:00:57]} 31. Qxd4 {[%clk 0:00:43]}  Qb6 {[%clk 0:00:55]} 32. Qxb6 {[%clk 0:00:38]}  Rxb6 {[%clk 0:00:54]} 33. Ne7 {[%clk 0:00:39]}  Ra6 {[%clk 0:00:50]} 34. Ned5 {[%clk 0:00:32]}  Ra1+ {[%clk 0:00:49]} 35. Kh2 {[%clk 0:00:22]}  Ne5 {[%clk 0:00:41]} 36. Nxf6 {[%clk 0:00:21]}  Kxf6 {[%clk 0:00:41]} 37. Nxh5+ {[%clk 0:00:20]}  Kf7 {[%clk 0:00:39]} 38. Bd5+ {[%clk 0:00:19]}  Kg6 {[%clk 0:00:30]} 39. Nf4+ {[%clk 0:00:20]}  Kh6 {[%clk 0:00:31]} 40. Kg2 {[%clk 0:00:20]}  Rd1 {[%clk 0:00:28]} 41. Bb3 {[%clk 0:00:20]}  Rb1 {[%clk 0:00:27]} 42. Rd2 {[%clk 0:00:19]}  Rg1+ {[%clk 0:00:19]} 43. Kf2 {[%clk 0:00:15]}  Ng4+ {[%clk 0:00:18]} 44. Kxg1 {[%clk 0:00:15]} 1-0


[Site "https://www.chess.com"]

[Event "Titled Tuesday Blitz February 07 Early 2023"]
[White "Cella, Glaucio Dalla Cortt"]
[Black "Fathy, Elameir"]
[WhiteFideId "2119455"]
[BlackFideId "10600396"]
[WhiteElo "1894"]
[BlackElo "2300"]
[Result "1-0"]
[Round "03"]
[TimeControl "180+2"]
[Date "2023.02.07"]
[WhiteClock "0:01:29"]
[BlackClock "0:00:19"]

1. e4 {[%clk 0:03:00]}  c6 {[%clk 0:03:00]} 2. Nf3 {[%clk 0:03:00]}  d5 {[%clk 0:02:58]} 3. exd5 {[%clk 0:03:01]}  cxd5 {[%clk 0:02:58]} 4. d4 {[%clk 0:03:02]}  Nc6 {[%clk 0:02:56]} 5. c3 {[%clk 0:03:03]}  Bf5 {[%clk 0:02:53]} 6. Qb3 {[%clk 0:03:01]}  Qd7 {[%clk 0:02:52]} 7. Ne5 {[%clk 0:02:58]}  Nxe5 {[%clk 0:02:52]} 8. dxe5 {[%clk 0:02:59]}  a6 {[%clk 0:02:52]} 9. Be3 {[%clk 0:02:55]}  e6 {[%clk 0:02:52]} 10. f4 {[%clk 0:02:55]}  Nh6 {[%clk 0:02:50]} 11. h3 {[%clk 0:02:53]}  Be7 {[%clk 0:02:48]} 12. Nd2 {[%clk 0:02:45]}  Bh4+ {[%clk 0:02:44]} 13. Ke2 {[%clk 0:02:42]}  O-O {[%clk 0:02:40]} 14. g4 {[%clk 0:02:39]}  Bg6 {[%clk 0:02:26]} 15. Nf3 {[%clk 0:02:39]}  Be7 {[%clk 0:02:26]} 16. Bg2 {[%clk 0:02:35]}  Be4 {[%clk 0:02:24]} 17. Rad1 {[%clk 0:02:30]}  Qc7 {[%clk 0:02:00]} 18. Kf2 {[%clk 0:02:30]}  b5 {[%clk 0:01:14]} 19. Nd4 {[%clk 0:02:25]}  Bh4+ {[%clk 0:01:14]} 20. Kg1 {[%clk 0:02:20]}  Bxg2 {[%clk 0:00:58]} 21. Kxg2 {[%clk 0:02:21]}  Rfe8 {[%clk 0:00:54]} 22. Rhf1 {[%clk 0:02:08]}  f6 {[%clk 0:00:54]} 23. Nf3 {[%clk 0:02:04]}  fxe5 {[%clk 0:00:37]} 24. Nxh4 {[%clk 0:02:03]}  exf4 {[%clk 0:00:37]} 25. Bxf4 {[%clk 0:01:59]}  Qc6 {[%clk 0:00:38]} 26. Bxh6 {[%clk 0:01:52]}  gxh6 {[%clk 0:00:38]} 27. Nf3 {[%clk 0:01:42]}  Qd6 {[%clk 0:00:32]} 28. Qc2 {[%clk 0:01:37]}  Rf8 {[%clk 0:00:29]} 29. Qe2 {[%clk 0:01:35]}  Rae8 {[%clk 0:00:25]} 30. Qe5 {[%clk 0:01:34]}  Qc5 {[%clk 0:00:21]} 31. Nd4 {[%clk 0:01:30]}  Rxf1 {[%clk 0:00:20]} 32. Rxf1 {[%clk 0:01:31]}  Qb6 {[%clk 0:00:19]} 33. Rf6 {[%clk 0:01:29]} 1-0


[Site "https://www.chess.com"]

[Event "Titled Tuesday Blitz February 07 Early 2023"]
[White "Slade, Theodore"]
[Black "Koridze, Lile"]
[WhiteFideId "426547"]
[BlackFideId "13612514"]
[WhiteElo "1995"]
[BlackElo "2191"]
[Result "1-0"]
[Round "03"]
[TimeControl "180+2"]
[Date "2023.02.07"]
[WhiteClock "0:01:02"]
[BlackClock "0:00:42"]

1. d4 {[%clk 0:03:00]}  Nf6 {[%clk 0:02:59]} 2. c4 {[%clk 0:03:01]}  e6 {[%clk 0:02:59]} 3. g3 {[%clk 0:03:01]}  d5 {[%clk 0:02:59]} 4. Bg2 {[%clk 0:03:02]}  Bb4+ {[%clk 0:02:59]} 5. Bd2 {[%clk 0:03:02]}  Be7 {[%clk 0:02:58]} 6. Nf3 {[%clk 0:03:02]}  O-O {[%clk 0:02:58]} 7. O-O {[%clk 0:03:03]}  c6 {[%clk 0:02:59]} 8. Qc2 {[%clk 0:03:03]}  b6 {[%clk 0:02:59]} 9. Bf4 {[%clk 0:03:02]}  Bb7 {[%clk 0:02:59]} 10. Nc3 {[%clk 0:03:02]}  Nbd7 {[%clk 0:02:57]} 11. e4 {[%clk 0:03:01]}  dxe4 {[%clk 0:02:57]} 12. Nxe4 {[%clk 0:03:02]}  Nxe4 {[%clk 0:02:58]} 13. Qxe4 {[%clk 0:03:02]}  Nf6 {[%clk 0:02:59]} 14. Qe2 {[%clk 0:03:02]}  c5 {[%clk 0:02:59]} 15. Rad1 {[%clk 0:02:53]}  cxd4 {[%clk 0:02:55]} 16. Nxd4 {[%clk 0:02:48]}  Qc8 {[%clk 0:02:56]} 17. Bxb7 {[%clk 0:02:42]}  Qxb7 {[%clk 0:02:56]} 18. Rfe1 {[%clk 0:02:36]}  Rac8 {[%clk 0:02:54]} 19. Nb5 {[%clk 0:02:23]}  Rfd8 {[%clk 0:02:44]} 20. Nd6 {[%clk 0:02:19]}  Bxd6 {[%clk 0:02:35]} 21. Bxd6 {[%clk 0:02:10]}  Qc6 {[%clk 0:02:32]} 22. Be7 {[%clk 0:01:56]}  Rxd1 {[%clk 0:02:31]} 23. Rxd1 {[%clk 0:01:56]}  Ne8 {[%clk 0:01:55]} 24. b3 {[%clk 0:01:53]}  f6 {[%clk 0:01:52]} 25. Ba3 {[%clk 0:01:36]}  g6 {[%clk 0:01:33]} 26. h4 {[%clk 0:01:36]}  Kf7 {[%clk 0:01:33]} 27. h5 {[%clk 0:01:36]}  Ng7 {[%clk 0:01:31]} 28. hxg6+ {[%clk 0:01:35]}  hxg6 {[%clk 0:01:30]} 29. Rd6 {[%clk 0:01:28]}  Qb7 {[%clk 0:01:25]} 30. Qd3 {[%clk 0:01:25]}  Rc7 {[%clk 0:01:16]} 31. Rd8 {[%clk 0:01:20]}  Ne8 {[%clk 0:00:57]} 32. Rxe8 {[%clk 0:01:14]}  Kxe8 {[%clk 0:00:55]} 33. Qxg6+ {[%clk 0:01:14]}  Kd7 {[%clk 0:00:53]} 34. Qf7+ {[%clk 0:01:11]}  Kd8 {[%clk 0:00:49]} 35. Qxf6+ {[%clk 0:01:06]}  Kc8 {[%clk 0:00:42]} 36. Qf8+ {[%clk 0:01:01]}  Kd7 {[%clk 0:00:41]} 37. Qe7+ {[%clk 0:01:02]}  Kc8 {[%clk 0:00:42]} 38. Qe8# {[%clk 0:01:02]} 1-0


[Site "https://www.chess.com"]

[Event "Titled Tuesday Blitz February 07 Early 2023"]
[White "Florescu, Codrut-Constantin"]
[Black "Ruiz Aguilar, Pablo Alexander"]
[WhiteFideId "1202200"]
[BlackFideId "4401352"]
[WhiteElo "2259"]
[BlackElo "2161"]
[Result "1/2-1/2"]
[Round "03"]
[TimeControl "180+2"]
[Date "2023.02.07"]
[WhiteClock "0:00:10"]
[BlackClock "0:00:09"]

1. e4 {[%clk 0:02:56]}  c5 {[%clk 0:03:00]} 2. Nf3 {[%clk 0:02:54]}  e6 {[%clk 0:03:00]} 3. d4 {[%clk 0:02:54]}  cxd4 {[%clk 0:03:01]} 4. Nxd4 {[%clk 0:02:55]}  a6 {[%clk 0:03:00]} 5. Bd3 {[%clk 0:02:55]}  Nf6 {[%clk 0:02:59]} 6. Qe2 {[%clk 0:02:52]}  d6 {[%clk 0:02:59]} 7. f4 {[%clk 0:02:51]}  Qc7 {[%clk 0:02:56]} 8. g4 {[%clk 0:02:50]}  Nc6 {[%clk 0:02:54]} 9. Nxc6 {[%clk 0:02:50]}  Qxc6 {[%clk 0:02:51]} 10. g5 {[%clk 0:02:50]}  Nd7 {[%clk 0:02:50]} 11. Nc3 {[%clk 0:02:49]}  Nc5 {[%clk 0:02:50]} 12. Be3 {[%clk 0:02:47]}  Be7 {[%clk 0:02:47]} 13. O-O-O {[%clk 0:02:46]}  g6 {[%clk 0:02:45]} 14. h4 {[%clk 0:02:45]}  Bd7 {[%clk 0:02:39]} 15. h5 {[%clk 0:02:45]}  O-O-O {[%clk 0:02:39]} 16. Bd4 {[%clk 0:02:41]}  Rhg8 {[%clk 0:02:37]} 17. hxg6 {[%clk 0:02:41]}  hxg6 {[%clk 0:02:37]} 18. Rh7 {[%clk 0:02:41]}  Be8 {[%clk 0:02:37]} 19. Kb1 {[%clk 0:02:40]}  Kb8 {[%clk 0:02:36]} 20. a3 {[%clk 0:02:13]}  Rc8 {[%clk 0:02:36]} 21. Qe3 {[%clk 0:02:08]}  Nxd3 {[%clk 0:02:23]} 22. cxd3 {[%clk 0:02:07]}  Ka8 {[%clk 0:02:00]} 23. Rc1 {[%clk 0:02:05]}  Qd7 {[%clk 0:01:58]} 24. Rc2 {[%clk 0:01:58]}  Bd8 {[%clk 0:01:36]} 25. Bf6 {[%clk 0:01:33]}  Bxf6 {[%clk 0:01:32]} 26. gxf6 {[%clk 0:01:33]}  Rc5 {[%clk 0:01:27]} 27. Qd4 {[%clk 0:01:17]}  Qc7 {[%clk 0:01:17]} 28. Rhh2 {[%clk 0:01:11]}  Bd7 {[%clk 0:01:13]} 29. Rh7 {[%clk 0:00:54]}  Be8 {[%clk 0:01:05]} 30. Rch2 {[%clk 0:00:53]}  b5 {[%clk 0:00:38]} 31. Rh8 {[%clk 0:00:53]}  Rxh8 {[%clk 0:00:36]} 32. Rxh8 {[%clk 0:00:54]}  Qd8 {[%clk 0:00:32]} 33. e5 {[%clk 0:00:52]}  Kb7 {[%clk 0:00:28]} 34. Ne4 {[%clk 0:00:51]}  Rd5 {[%clk 0:00:27]} 35. Rxe8 {[%clk 0:00:33]}  Qxe8 {[%clk 0:00:23]} 36. Nxd6+ {[%clk 0:00:32]}  Rxd6 {[%clk 0:00:20]} 37. Qxd6 {[%clk 0:00:32]}  Qc6 {[%clk 0:00:16]} 38. Qe7+ {[%clk 0:00:32]}  Qc7 {[%clk 0:00:16]} 39. d4 {[%clk 0:00:20]}  Kc6 {[%clk 0:00:16]} 40. Qf8 {[%clk 0:00:14]}  Kd5 {[%clk 0:00:13]} 41. Qa8+ {[%clk 0:00:13]}  Kxd4 {[%clk 0:00:12]} 42. Qxa6 {[%clk 0:00:13]}  Qc4 {[%clk 0:00:11]} 43. Qa7+ {[%clk 0:00:12]}  Ke4 {[%clk 0:00:11]} 44. Qb7+ {[%clk 0:00:10]}  Kxf4 {[%clk 0:00:10]} 45. Qxf7 {[%clk 0:00:10]}  Qf1+ {[%clk 0:00:09]} 46. Kc2 {[%clk 0:00:09]}  Qc4+ {[%clk 0:00:09]} 47. Kd2 {[%clk 0:00:10]}  Qd4+ {[%clk 0:00:09]} 48. Kc2 {[%clk 0:00:10]}  Qc4+ {[%clk 0:00:09]} 49. Kd2 {[%clk 0:00:10]}  Qd4+ {[%clk 0:00:09]} 50. Kc2 {[%clk 0:00:10]}  Qc4+ {[%clk 0:00:09]} 1/2-1/2


[Site "https://www.chess.com"]

[Event "Titled Tuesday Blitz February 07 Early 2023"]
[White "Ramirez Allo, Eduardo"]
[Black "Osmonbekov, Talaibek"]
[WhiteFideId "2224178"]
[BlackFideId "2017253"]
[WhiteElo "2274"]
[BlackElo "2137"]
[Result "1-0"]
[Round "03"]
[TimeControl "180+2"]
[Date "2023.02.07"]
[WhiteClock "0:00:27"]
[BlackClock "0:00:09"]

1. d4 {[%clk 0:03:00]}  e6 {[%clk 0:02:59]} 2. c4 {[%clk 0:03:01]}  f5 {[%clk 0:02:59]} 3. Nf3 {[%clk 0:02:59]}  Nf6 {[%clk 0:03:00]} 4. Bf4 {[%clk 0:02:59]}  Be7 {[%clk 0:03:00]} 5. e3 {[%clk 0:03:00]}  O-O {[%clk 0:03:00]} 6. Be2 {[%clk 0:03:01]}  d6 {[%clk 0:03:01]} 7. O-O {[%clk 0:03:01]}  Nc6 {[%clk 0:03:00]} 8. Nc3 {[%clk 0:03:01]}  Qe8 {[%clk 0:02:59]} 9. d5 {[%clk 0:02:58]}  e5 {[%clk 0:02:53]} 10. dxc6 {[%clk 0:02:57]}  exf4 {[%clk 0:02:52]} 11. cxb7 {[%clk 0:02:55]}  Bxb7 {[%clk 0:02:52]} 12. exf4 {[%clk 0:02:55]}  Ne4 {[%clk 0:02:52]} 13. Nd5 {[%clk 0:02:47]}  Bd8 {[%clk 0:02:50]} 14. Nd2 {[%clk 0:02:39]}  c6 {[%clk 0:02:45]} 15. Ne3 {[%clk 0:02:38]}  Bb6 {[%clk 0:02:42]} 16. Nxe4 {[%clk 0:02:34]}  Qxe4 {[%clk 0:02:38]} 17. Qxd6 {[%clk 0:02:02]}  Rad8 {[%clk 0:02:31]} 18. Qa3 {[%clk 0:01:58]}  Rd2 {[%clk 0:02:21]} 19. Bf3 {[%clk 0:01:57]}  Qxf4 {[%clk 0:02:21]} 20. Rad1 {[%clk 0:01:51]}  Rfd8 {[%clk 0:02:15]} 21. Rxd2 {[%clk 0:01:51]}  Rxd2 {[%clk 0:02:15]} 22. Rd1 {[%clk 0:01:49]}  Rxd1+ {[%clk 0:01:44]} 23. Bxd1 {[%clk 0:01:50]}  Bxe3 {[%clk 0:01:27]} 24. Qxe3 {[%clk 0:01:51]}  Qxe3 {[%clk 0:01:24]} 25. fxe3 {[%clk 0:01:52]}  Kf7 {[%clk 0:01:16]} 26. Bf3 {[%clk 0:01:48]}  Ke6 {[%clk 0:01:16]} 27. Kf2 {[%clk 0:01:46]}  Kd6 {[%clk 0:01:16]} 28. b4 {[%clk 0:01:45]}  Ba6 {[%clk 0:01:11]} 29. c5+ {[%clk 0:01:40]}  Kd7 {[%clk 0:01:11]} 30. h4 {[%clk 0:01:34]}  Bc4 {[%clk 0:01:08]} 31. a3 {[%clk 0:01:32]}  Bb5 {[%clk 0:01:04]} 32. Kg3 {[%clk 0:01:32]}  Ke6 {[%clk 0:00:59]} 33. Kf4 {[%clk 0:01:31]}  h6 {[%clk 0:00:59]} 34. g3 {[%clk 0:01:25]}  g6 {[%clk 0:00:59]} 35. e4 {[%clk 0:01:16]}  fxe4 {[%clk 0:00:54]} 36. Bxe4 {[%clk 0:01:17]}  Kf6 {[%clk 0:00:54]} 37. Bc2 {[%clk 0:01:08]}  g5+ {[%clk 0:00:51]} 38. Ke4 {[%clk 0:00:56]}  gxh4 {[%clk 0:00:49]} 39. gxh4 {[%clk 0:00:57]}  a6 {[%clk 0:00:43]} 40. Bd3 {[%clk 0:00:53]}  Ke6 {[%clk 0:00:36]} 41. Bxb5 {[%clk 0:00:40]}  axb5 {[%clk 0:00:36]} 42. Kd4 {[%clk 0:00:40]}  Kf5 {[%clk 0:00:36]} 43. h5 {[%clk 0:00:33]}  Kf4 {[%clk 0:00:32]} 44. Kc3 {[%clk 0:00:31]}  Kg5 {[%clk 0:00:32]} 45. a4 {[%clk 0:00:30]}  bxa4 {[%clk 0:00:27]} 46. b5 {[%clk 0:00:29]}  cxb5 {[%clk 0:00:26]} 47. c6 {[%clk 0:00:30]}  Kxh5 {[%clk 0:00:23]} 48. c7 {[%clk 0:00:30]}  Kh4 {[%clk 0:00:13]} 49. c8=Q {[%clk 0:00:31]}  h5 {[%clk 0:00:13]} 50. Qg8 {[%clk 0:00:28]}  Kh3 {[%clk 0:00:12]} 51. Kd3 {[%clk 0:00:27]}  a3 {[%clk 0:00:09]} 52. Ke3 {[%clk 0:00:27]} 1-0


[Site "https://www.chess.com"]

[Event "Titled Tuesday Blitz February 07 Early 2023"]
[White "Van den Dikkenberg, Erik"]
[Black "Mamedov, Edgar"]
[WhiteFideId "1005880"]
[BlackFideId "13739980"]
[WhiteElo "2091"]
[BlackElo "2193"]
[Result "0-1"]
[Round "03"]
[TimeControl "180+2"]
[Date "2023.02.07"]
[WhiteClock "0:00:24"]
[BlackClock "0:00:51"]

1. e4 {[%clk 0:03:00]}  c6 {[%clk 0:02:58]} 2. d4 {[%clk 0:03:00]}  d5 {[%clk 0:02:58]} 3. exd5 {[%clk 0:03:01]}  cxd5 {[%clk 0:02:58]} 4. Bd3 {[%clk 0:03:02]}  Nc6 {[%clk 0:02:58]} 5. c3 {[%clk 0:03:02]}  Nf6 {[%clk 0:02:58]} 6. Nf3 {[%clk 0:03:02]}  Bg4 {[%clk 0:02:57]} 7. O-O {[%clk 0:03:02]}  e6 {[%clk 0:02:56]} 8. Re1 {[%clk 0:03:02]}  Bd6 {[%clk 0:02:55]} 9. Bg5 {[%clk 0:02:59]}  O-O {[%clk 0:02:54]} 10. Nbd2 {[%clk 0:02:59]}  Bh5 {[%clk 0:02:51]} 11. Qc2 {[%clk 0:02:52]}  Bg6 {[%clk 0:02:50]} 12. Ne5 {[%clk 0:02:46]}  Qc7 {[%clk 0:02:45]} 13. Bxg6 {[%clk 0:02:35]}  hxg6 {[%clk 0:02:42]} 14. Rac1 {[%clk 0:02:34]}  Nxe5 {[%clk 0:02:39]} 15. dxe5 {[%clk 0:02:34]}  Bxe5 {[%clk 0:02:38]} 16. Nf3 {[%clk 0:02:34]}  Bf4 {[%clk 0:02:37]} 17. Bxf4 {[%clk 0:02:32]}  Qxf4 {[%clk 0:02:38]} 18. Qb3 {[%clk 0:02:29]}  Qc7 {[%clk 0:02:35]} 19. Ne5 {[%clk 0:02:28]}  Rab8 {[%clk 0:02:31]} 20. c4 {[%clk 0:02:23]}  Rfc8 {[%clk 0:02:29]} 21. c5 {[%clk 0:02:21]}  Ne4 {[%clk 0:02:29]} 22. Nd3 {[%clk 0:02:14]}  Qa5 {[%clk 0:02:25]} 23. Qc2 {[%clk 0:01:31]}  Qxa2 {[%clk 0:01:45]} 24. Ra1 {[%clk 0:01:20]}  Qc4 {[%clk 0:01:44]} 25. Qd1 {[%clk 0:01:14]}  Nxc5 {[%clk 0:01:41]} 26. Ne5 {[%clk 0:01:00]}  Qb3 {[%clk 0:01:37]} 27. Qg4 {[%clk 0:00:49]}  Qxb2 {[%clk 0:01:24]} 28. Rxa7 {[%clk 0:00:44]}  Qc2 {[%clk 0:01:09]} 29. Qf3 {[%clk 0:00:33]}  Qf5 {[%clk 0:01:08]} 30. Qa3 {[%clk 0:00:28]}  Ne4 {[%clk 0:01:01]} 31. f3 {[%clk 0:00:27]}  Qxe5 {[%clk 0:00:59]} 32. fxe4 {[%clk 0:00:27]}  dxe4 {[%clk 0:00:58]} 33. Qe7 {[%clk 0:00:24]}  Qd4+ {[%clk 0:00:51]} 0-1


[Site "https://www.chess.com"]

[Event "Titled Tuesday Blitz February 07 Early 2023"]
[White "Andrews, Todd"]
[Black "Bashirli, Saadat"]
[WhiteFideId "2012456"]
[BlackFideId "13429990"]
[WhiteElo "2220"]
[BlackElo "1571"]
[Result "1-0"]
[Round "03"]
[TimeControl "180+2"]
[Date "2023.02.07"]
[WhiteClock "0:00:57"]
[BlackClock "0:00:51"]

1. e4 {[%clk 0:03:00]}  e6 {[%clk 0:02:55]} 2. d4 {[%clk 0:02:58]}  d5 {[%clk 0:02:54]} 3. Nc3 {[%clk 0:02:59]}  Bb4 {[%clk 0:02:51]} 4. e5 {[%clk 0:02:59]}  c5 {[%clk 0:02:50]} 5. Bd2 {[%clk 0:03:00]}  cxd4 {[%clk 0:02:45]} 6. Nb5 {[%clk 0:03:00]}  Be7 {[%clk 0:02:39]} 7. f4 {[%clk 0:02:57]}  Nc6 {[%clk 0:02:38]} 8. Nf3 {[%clk 0:02:57]}  Nh6 {[%clk 0:02:37]} 9. Nbxd4 {[%clk 0:02:55]}  Nxd4 {[%clk 0:02:37]} 10. Nxd4 {[%clk 0:02:55]}  O-O {[%clk 0:02:38]} 11. Bd3 {[%clk 0:02:54]}  Qb6 {[%clk 0:02:37]} 12. c3 {[%clk 0:02:20]}  Bc5 {[%clk 0:02:36]} 13. Nb3 {[%clk 0:02:14]}  Bf2+ {[%clk 0:02:30]} 14. Kf1 {[%clk 0:02:14]}  Be3 {[%clk 0:02:27]} 15. Ke2 {[%clk 0:01:49]}  Bxd2 {[%clk 0:02:23]} 16. Qxd2 {[%clk 0:01:50]}  Ng4 {[%clk 0:02:20]} 17. Raf1 {[%clk 0:01:49]}  a5 {[%clk 0:02:16]} 18. h3 {[%clk 0:01:46]}  Nh6 {[%clk 0:02:14]} 19. g4 {[%clk 0:01:40]}  a4 {[%clk 0:02:04]} 20. Nd4 {[%clk 0:01:40]}  Kh8 {[%clk 0:01:50]} 21. Rf3 {[%clk 0:01:27]}  f6 {[%clk 0:01:44]} 22. exf6 {[%clk 0:01:23]}  gxf6 {[%clk 0:01:45]} 23. f5 {[%clk 0:01:20]}  exf5 {[%clk 0:01:27]} 24. Qxh6 {[%clk 0:01:16]}  Re8+ {[%clk 0:01:27]} 25. Kf2 {[%clk 0:01:12]}  fxg4 {[%clk 0:01:25]} 26. hxg4 {[%clk 0:01:08]}  Qc7 {[%clk 0:00:56]} 27. Bxh7 {[%clk 0:00:59]}  Qe7 {[%clk 0:00:52]} 28. Bg6+ {[%clk 0:00:57]}  Kg8 {[%clk 0:00:51]} 29. Qh8# {[%clk 0:00:57]} 1-0


[Site "https://www.chess.com"]

[Event "Titled Tuesday Blitz February 07 Early 2023"]
[White "Sovetbekova, Nurai"]
[Black "Jimenez Almeida, Luis David"]
[WhiteFideId "13801910"]
[BlackFideId "22242244"]
[WhiteElo "1764"]
[BlackElo "2242"]
[Result "0-1"]
[Round "03"]
[TimeControl "180+2"]
[Date "2023.02.07"]
[WhiteClock "0:00:05"]
[BlackClock "0:00:44"]

1. d4 {[%clk 0:03:00]}  g6 {[%clk 0:02:58]} 2. c4 {[%clk 0:02:59]}  Bg7 {[%clk 0:02:58]} 3. e4 {[%clk 0:02:59]}  c5 {[%clk 0:02:58]} 4. d5 {[%clk 0:02:59]}  b5 {[%clk 0:02:58]} 5. cxb5 {[%clk 0:02:57]}  a6 {[%clk 0:02:58]} 6. Nc3 {[%clk 0:02:55]}  d6 {[%clk 0:02:56]} 7. a4 {[%clk 0:02:49]}  axb5 {[%clk 0:02:50]} 8. Bxb5+ {[%clk 0:02:48]}  Nd7 {[%clk 0:02:50]} 9. Nf3 {[%clk 0:02:45]}  Nf6 {[%clk 0:02:51]} 10. O-O {[%clk 0:02:45]}  O-O {[%clk 0:02:51]} 11. Qc2 {[%clk 0:02:44]}  Ba6 {[%clk 0:02:49]} 12. Nd2 {[%clk 0:02:35]}  Ne8 {[%clk 0:02:32]} 13. Bxa6 {[%clk 0:02:16]}  Rxa6 {[%clk 0:02:33]} 14. Nb5 {[%clk 0:02:16]}  Nc7 {[%clk 0:02:32]} 15. Nxc7 {[%clk 0:02:03]}  Qxc7 {[%clk 0:02:33]} 16. Nc4 {[%clk 0:02:01]}  Rb8 {[%clk 0:02:31]} 17. Bd2 {[%clk 0:01:56]}  Nb6 {[%clk 0:02:14]} 18. Nxb6 {[%clk 0:01:34]}  Qxb6 {[%clk 0:02:15]} 19. Bc3 {[%clk 0:01:34]}  Qb3 {[%clk 0:02:15]} 20. Rfc1 {[%clk 0:01:10]}  Bxc3 {[%clk 0:01:55]} 21. Qxc3 {[%clk 0:00:54]}  Qxb2 {[%clk 0:01:40]} 22. Qc4 {[%clk 0:00:48]}  Ra5 {[%clk 0:01:33]} 23. h3 {[%clk 0:00:42]}  Rb4 {[%clk 0:01:31]} 24. Qd3 {[%clk 0:00:36]}  Qd4 {[%clk 0:01:29]} 25. Qc2 {[%clk 0:00:19]}  Raxa4 {[%clk 0:01:27]} 26. Rxa4 {[%clk 0:00:18]}  Rxa4 {[%clk 0:01:26]} 27. Re1 {[%clk 0:00:17]}  Rb4 {[%clk 0:01:25]} 28. Re2 {[%clk 0:00:13]}  c4 {[%clk 0:01:22]} 29. e5 {[%clk 0:00:11]}  c3 {[%clk 0:01:11]} 30. exd6 {[%clk 0:00:11]}  exd6 {[%clk 0:01:12]} 31. Qa2 {[%clk 0:00:10]}  Kg7 {[%clk 0:01:08]} 32. Kh2 {[%clk 0:00:08]}  Rb2 {[%clk 0:01:05]} 33. Qa6 {[%clk 0:00:05]}  Rxe2 {[%clk 0:00:49]} 34. Qxe2 {[%clk 0:00:06]}  Qd2 {[%clk 0:00:48]} 35. Qe7 {[%clk 0:00:05]}  Qf4+ {[%clk 0:00:44]} 36. Kg1 {[%clk 0:00:05]}  c2 {[%clk 0:00:44]} 0-1


[Site "https://www.chess.com"]